{"text_format":"1","workbook":"xlsx","n_sheets":49,"sheets":["modProv","Инструкция","Лог обновления","Титульный","Территории","Дифференциация","Форма 1.0.1","Форма 4.6","Сведения об изменении","Форма 1.0.2","Комментарии","Проверка","modReestr","AllSheetsInThisWorkbook","TEHSHEET","modCheckCyan","modInfo","et_union_hor","et_union_vert","modList00","modList01","modList02","modList03","modList04","modList07","modList09","modHTTP","modfrmRegion","MR_LIST","REESTR_VT","REESTR_VED","modfrmReestrObj","DataOrg","modfrmReestr","modUpdTemplMain","REESTR_ORG","modClassifierValidate","modHyp","modfrmDateChoose","modComm","modThisWorkbook","REESTR_MO","REESTR_MO_FILTER","modfrmReestrMR","modServiceModule","modfrmCheckUpdates","REESTR_DS","REESTR_CHS","REESTR_LINK"],"not_rendered":{"charts":0,"images":22,"macros":1,"external_links":0,"defined_names":180,"comments":3,"pivot_tables":0},"unopened":[],"bounds":{"document_bytes":16777216,"sheet_cells":100000,"rows_first":2000,"rows_last":500,"rows_between":2000,"halvings":0,"cell_chars":16384,"cell_head_chars":4096},"cells_cut":0,"cells_raw":0,"read":"whole","date_system":"1900"}

{"sheet":"modProv","index":0,"n_rows":0,"n_cols":0,"rows_kept":0,"cut":false,"hidden":true,"merged":[]}

{"sheet":"Инструкция","index":1,"n_rows":83,"n_cols":27,"rows_kept":83,"cut":false,"hidden":false,"merged":[[82,5,82,23],[60,7,60,23],[78,4,78,23],[72,5,72,23],[73,5,73,23],[74,4,74,23],[75,4,75,23],[76,4,76,23],[77,4,77,23],[69,4,69,19],[39,4,39,23],[40,4,44,23],[45,4,56,23],[80,5,80,18],[58,4,58,6],[58,7,58,23],[59,4,59,6],[71,5,71,23],[57,4,57,20],[70,4,70,19],[34,4,38,23],[22,15,22,22],[21,5,21,12],[1,1,1,6],[2,1,2,2],[4,1,4,24],[6,4,18,23],[20,5,20,12],[20,15,20,23],[21,15,21,23]]}
[null,null,null,null,null,null,null,null,null,null,null,null,null,null,null,null,null,null,null,null,null,null,null,null,null,null," (требуется обновление)"]
[null,{"$f":"\"Код отчёта: \" & GetCode()","v":"Код отчёта: FAS.JKH.OPEN.INFO.QUARTER.WARM"}]
[null,{"$f":"\"Версия \" & GetVersion()","v":"Версия 1.0.1"}]
[]
[null,{"$f":"Титульный!E5","v":"Информация о наличии (отсутствии) технической возможности подключения к системе теплоснабжения, а также о регистрации и ходе реализации заявок о подключении к системе теплоснабжения "}]
[]
[null,null,null,null,"• На рабочем месте должен быть установлен MS Office 2007 SP3, 2010, 2013, 2016 с полной версией MS Excel\n\n• Макросы во время работы должны быть включены (!)\n\n• Для корректной работы отчёта требуется выбрать низкий уровень безопасности\n(В меню MS Excel 2007/2010/2013/2016: Параметры Excel | Центр управления безопасностью | Параметры центра управления безопасностью | Параметры макросов | Включить все макросы | ОК)\n\n• Если Вы работаете в табличном процессоре MS Excel 2007 и выше, то можете использовать для работы формат XLSB (Двоичная книга Excel). При работе в формате XLSB заметно быстрее происходит сохранение файла, а также уменьшается размер по сравнению с форматами XLS и XLSM\n\n• Не рекомендуется снимать защиту с листов и каким-либо образом модифицировать защищаемые формулы и расчётные поля, в противном случае, отчёт будет отклонён системой\n\n• При сохранении не следует выбирать формат XLSX (Книга Excel), так как в указанном формате макросы, необходимые для работы отчёта, безвозвратно удаляются"]
[]
[]
[]
[]
[]
[]
[]
[]
[]
[]
[]
[]
[]
[null,null,null,null,"A"," - не обязательные для заполнения",null,null,null,null,null,null,null,null,"A"," - с формулами и константами"]
[null,null,null,null,"A"," - обязательные для заполнения",null,null,null,null,null,null,null,null,"A"," - с выбором значений до двойному клику"]
[]
[]
[]
[]
[]
[]
[]
[]
[]
[]
[]
[]
[null,null,null,null,"Если в предложенном Вам списке необходимая организация, МР/МО отсутствуют, обновите реестры с помощью кнопок\n\nВ результате синхронизации с базой данных список организаций (МР/МО) будет заменён актуальным (механизм синхронизации требует подключения к сети Интернет и основан на использовании протокола HTTPS (TCP порт 443))\n\nЕсли после обновления Вам не удалось найти необходимую организацию в списке, обратитесь к ответственному за поддержание реестра Вашего региона."]
[]
[]
[]
[]
[]
[]
[]
[]
[]
[]
[null,null,null,null,"• При сохранении шаблона осуществляется проверка корректности данных, в том числе на наличие значений в ячейках, обязательных для заполнения\n\n• Если какая-то ячейка не удовлетворяет условию проверки, на лист «Проверка» добавляется гиперссылка на данную ячейку и указывается причина ошибки\n\n• В колонке «Статус» для каждого сообщения возможны 2 значения: ошибка и предупреждение\n\n• При наличии сообщений со статусом «Ошибка» шаблон будет отклонён системой и не будет загружен в хранилище данных, сообщения со статусом «Предупреждение» носят информационный характер, и такой шаблон будет принят системой"]
[]
[]
[]
[]
[]
[]
[]
[]
[]
[]
[]
[null,null,null,null,"Обратиться за помощью в службу технической поддержки"]
[]
[]
[]
[]
[]
[]
[]
[]
[]
[]
[]
[null,null,null,null,"Инструкция по загрузке сопроводительных материалов"]
[null,null,null,null,"Инструкция по работе с отчетной формой"]
[]
[]
[]
[]
[]
[]
[]
[null,null,null,null,"При наличии подключения к Интернет, можно автоматически проверять наличие доступных обновлений. Выберите способ оповещения о наличии обновлений для отчёта:"]
[]
[null,null,null,null,null,"проверять доступные обновления (рекомендуется)",null,null,null,null,null,null,null,null,null,null,null,null,null,null,null,null,null,null,null,null,"y"]
[]
[null,null,null,null,null,"никогда не проверять наличие обновлений (не рекомендуется)"]

{"sheet":"Лог обновления","index":2,"n_rows":20,"n_cols":3,"rows_kept":20,"cut":false,"hidden":true,"merged":[]}
["Дата/Время","Сообщение","Статус"]
["2018-10-29T13:32:56","Проверка доступных обновлений...","Информация"]
["2018-10-29T13:32:57","Доступно обновление до версии 1.0.1","Информация"]
["2018-10-29T13:32:57","Описание изменений: Версия 1.0.1\n1. Исправление ошибки с удалением видов деятельности","Информация"]
["2018-10-29T13:32:58","Размер файла обновления: 376832 байт","Информация"]
["2018-10-29T13:33:01","Подготовка к обновлению...","Информация"]
["2018-10-29T13:33:10","Сохранение файла резервной копии: \\\\tc_\\dfsserver\\users2\\glazunova.os\\Рабочий стол\\Юля раскрытие 3 кв2018\\FAS.JKH.OPEN.INFO.QUARTER.WARM ФАС.xls.BKP..xlsb","Информация"]
["2018-10-29T13:33:20","Резервная копия создана: \\\\tc_\\dfsserver\\users2\\glazunova.os\\Рабочий стол\\Юля раскрытие 3 кв2018\\FAS.JKH.OPEN.INFO.QUARTER.WARM ФАС.xls.BKP..xlsb","Информация"]
["2018-10-29T13:33:20","Создание книги для установки обновлений...","Информация"]
["2018-10-29T13:33:32","Файл обновления загружен: \\\\tc_\\dfsserver\\users2\\glazunova.os\\Рабочий стол\\Юля раскрытие 3 кв2018\\UPDATE.FAS.JKH.OPEN.INFO.QUARTER.WARM.TO.1.0.1.31.xls","Информация"]
["2018-10-29T13:33:44","Обновление завершилось удачно! Шаблон FAS.JKH.OPEN.INFO.QUARTER.WARM ФАС.xls сохранен под именем 'FAS.JKH.OPEN.INFO.QUARTER.WARM ФАС(v1.0.1).xls'","Информация"]
["2018-10-30T14:49:39","Проверка доступных обновлений...","Информация"]
["2018-10-30T14:49:41","Нет доступных обновлений для отчёта с кодом FAS.JKH.OPEN.INFO.QUARTER.WARM!","Информация"]
["2018-10-30T14:49:55","Проверка доступных обновлений...","Информация"]
["2018-10-30T14:49:56","Нет доступных обновлений для отчёта с кодом FAS.JKH.OPEN.INFO.QUARTER.WARM!","Информация"]
["2018-10-30T14:50:19","Проверка доступных обновлений...","Информация"]
["2018-10-30T14:50:21","Нет доступных обновлений для отчёта с кодом FAS.JKH.OPEN.INFO.QUARTER.WARM!","Информация"]
["2018-10-30T14:53:19","Проверка доступных обновлений...","Информация"]
["2018-10-30T14:53:21","Нет доступных обновлений для отчёта с кодом FAS.JKH.OPEN.INFO.QUARTER.WARM!","Информация"]
["2018-10-30T16:24:22","Проверка доступных обновлений...","Информация"]

{"sheet":"Титульный","index":3,"n_rows":45,"n_cols":6,"rows_kept":45,"cut":false,"hidden":false,"merged":[[4,4,4,5],[44,4,44,5]]}
[null,null,null,null,null,26555650]
[]
[]
[null,null,null,null,null,{"$f":"version","v":"Версия 1.0.1"}]
[null,null,null,null,"Информация о наличии (отсутствии) технической возможности подключения к системе теплоснабжения, а также о регистрации и ходе реализации заявок о подключении к системе теплоснабжения "]
[]
[null,null,null,null,"Субъект РФ","Ленинградская область"]
[]
[null,null,null,null,"Публикация2","На сайте регулирующего органа"]
[]
[null,null,null,null,"Отсутствует Интернет в границах территории МО, где организация осуществляет регулируемые виды деятельности","нет"]
[]
[null,null,null,null,"Тип отчета","первичное раскрытие информации"]
[null,null,null,null,"Дата внесения изменений в информацию, подлежащую раскрытию","30.10.2018"]
[]
[null,null,null,null,"Применяется дифференциация тарифа по централизованным системам теплоснабжения?"]
[null,null,null,null,"Информация по скольким централизованным системам теплоснабжения будет заполнена в шаблоне?"]
[]
[null,null,null,null,null,"Отчетный период"]
[null,null,2018,null,"Год",2018]
[null,null,"III квартал",null,"Квартал","III квартал"]
[]
[null,null,null,null,"Является ли данное юридическое лицо подразделением (филиалом) другой организации","нет"]
[]
[]
[null,null,null,null,"Наименование организации","АО \"Теплосеть Санкт-Петербурга\""]
[null,null,null,null,"Наименование филиала"]
[null,null,null,null,"ИНН","7810577007"]
[null,null,null,null,"КПП","781001001"]
[null,null,null,null,"Вид деятельности"]
[]
[null,null,null,null,"Тип теплоснабжающей организации","Регулируемая организация"]
[]
[null,null,null,null,"Почтовый адрес регулируемой организации","191119, Санкт-Петербург, ул. Черняховского, д. 36"]
[null,null,null,null,"Фамилия, имя, отчество руководителя","Стренадко Игорь Михайлович"]
[]
[null,null,null,null,null,"Ответственный за составление формы"]
[null,null,null,null,"Фамилия, имя, отчество","Глазунова Ольга Сергеевна"]
[null,null,null,null,"Должность","Начальник отдела тарифного регулирования"]
[null,null,null,null,"(код) номер телефона","(812) 688-46-97"]
[null,null,null,null,"e-mail","glazunova.os@teplosetspb.ru"]
[]
[]
[]
[null,null,null,null,"В соответствии с пунктом 33.12 Постановления Правительства РФ от 5 июля 2013 г. № 570 \"О стандартах раскрытия информации теплоснабжающими организациями, теплосетевыми организациями и органами регулирования\" теплоснабжающей организацией и теплосетевой организацией в ценовых зонах теплоснабжения информация категории \"о наличии (об отсутствии) технической возможности подключения (технологического присоединения) к системе теплоснабжения, а также о регистрации и ходе реализации заявок на подключение (технологическое присоединение) к системе теплоснабжения\" раскрытию не подлежит"]

{"sheet":"Территории","index":4,"n_rows":27,"n_cols":18,"rows_kept":27,"cut":false,"hidden":false,"merged":[[8,5,8,6],[8,8,8,9],[9,5,9,6],[9,8,9,9],[3,3,3,7],[5,3,5,4],[5,5,5,6],[7,3,7,4],[7,5,7,7],[7,8,7,11],[12,7,14,7],[16,2,20,2],[16,3,20,3],[16,4,20,4],[17,5,19,5],[17,6,19,6],[17,7,19,7],[11,2,15,2],[11,3,15,3],[11,4,15,4],[12,5,14,5],[12,6,14,6],[22,7,24,7],[21,2,25,2],[21,3,25,3],[21,4,25,4],[22,5,24,5],[22,6,24,6]]}
[null,null,null,null,null,null,null,null,null,null,"МО","ОКТМО","МР"]
[]
[]
[null,null,null,"Перечень муниципальных районов и муниципальных образований (территорий действия тарифа)"]
[]
[null,null,null,null,null,"да"]
[]
[null,null,null,"Территория действия тарифа",null,"Муниципальный район",null,null,"Муниципальное образование"]
[null,null,null,"№ п/п","Наименование","№ п/п",null,"Наименование","№ п/п",null,"Наименование","ОКТМО"]
[null,null,null,"1","2","3",null,"4","5",null,"6","7"]
[null,null,null,0,null,"",null,null,"",null,null,null,"размерженный МР",null,null,"флаг используемости территории на листе Перечень тарифов","копия территорий","МР (ОКТМО)"]
[null,"man",null,1,"Всеволожский муниципальный район, Муринское (41612428);","",0,null,"","0",null,null,{"$f":"mergeValue(H12)","v":0},null,null,{"$f":"IF(ISERROR(MATCH(MID(Q12,1,250),MID(note_ter,1,250),0)),\"n\",\"y\")","v":"y"},"Всеволожский муниципальный район, Муринское (41612428);",{"$f":"K12&\"(\"&L12&\")\"","v":"()"}]
[null,"auto",null,null,null,"",1,"Всеволожский муниципальный район","","0",null,null,{"$f":"mergeValue(H13)","v":"Всеволожский муниципальный район"},null,null,null,null,{"$f":"K13&\"(\"&L13&\")\"","v":"()"}]
[null,"auto",null,null,null,null,null,null,"",1,"Муринское","41612428",{"$f":"mergeValue(H14)","v":"Всеволожский муниципальный район"},null,null,null,null,{"$f":"K14&\" (\"&L14&\")\"","v":"Муринское (41612428)"}]
[null,null,null,null,null,null,null,null,"",null,""]
[null,null,null,null,null,"","","",""]
[null,"auto",null,2,"Всеволожский муниципальный район, Новодевяткинское (41612458);","",0,null,"","0",null,null,{"$f":"mergeValue(H17)","v":0},null,null,{"$f":"IF(ISERROR(MATCH(MID(Q17,1,250),MID(note_ter,1,250),0)),\"n\",\"y\")","v":"y"},"Всеволожский муниципальный район, Новодевяткинское (41612458);",{"$f":"K17&\"(\"&L17&\")\"","v":"()"}]
[null,"auto",null,null,null,"",1,"Всеволожский муниципальный район","","0",null,null,{"$f":"mergeValue(H18)","v":"Всеволожский муниципальный район"},null,null,null,null,{"$f":"K18&\"(\"&L18&\")\"","v":"()"}]
[null,"auto",null,null,null,null,null,null,"",1,"Новодевяткинское","41612458",{"$f":"mergeValue(H19)","v":"Всеволожский муниципальный район"},null,null,null,null,{"$f":"K19&\" (\"&L19&\")\"","v":"Новодевяткинское (41612458)"}]
[null,null,null,null,null,null,null,null,"",null,""]
[null,null,null,null,null,"","","",""]
[null,"auto",null,3,"Всеволожский муниципальный район, Заневское (41612155);","",0,null,"","0",null,null,{"$f":"mergeValue(H22)","v":0},null,null,{"$f":"IF(ISERROR(MATCH(MID(Q22,1,250),MID(note_ter,1,250),0)),\"n\",\"y\")","v":"y"},"Всеволожский муниципальный район, Заневское (41612155);",{"$f":"K22&\"(\"&L22&\")\"","v":"()"}]
[null,"auto",null,null,null,"",1,"Всеволожский муниципальный район","","0",null,null,{"$f":"mergeValue(H23)","v":"Всеволожский муниципальный район"},null,null,null,null,{"$f":"K23&\"(\"&L23&\")\"","v":"()"}]
[null,"auto",null,null,null,null,null,null,"",1,"Заневское","41612155",{"$f":"mergeValue(H24)","v":"Всеволожский муниципальный район"},null,null,null,null,{"$f":"K24&\" (\"&L24&\")\"","v":"Заневское (41612155)"}]
[null,null,null,null,null,null,null,null,"",null,""]
[null,null,null,null,null,"","","",""]
[null,"man",null,null,"","",null,null,"",null,null,null,null,null,null,null,"Добавить территорию действия тарифа"]

{"sheet":"Дифференциация","index":5,"n_rows":30,"n_cols":26,"rows_kept":30,"cut":false,"hidden":false,"merged":[[17,0,18,0],[17,3,17,4],[3,3,3,8],[4,3,4,8],[7,4,7,5],[8,1,8,3],[5,0,6,5],[7,1,7,3],[8,4,8,5],[9,1,9,3],[9,4,9,5],[13,1,13,3],[10,4,10,5],[10,1,10,3],[28,2,29,2],[11,1,11,3],[12,1,12,3],[21,4,27,4],[21,5,27,5],[21,3,27,3],[17,5,17,8],[21,6,22,6],[21,7,22,7],[21,8,22,8],[23,6,24,6],[23,7,24,7],[23,8,24,8],[21,9,22,9],[17,9,17,12],[19,6,19,7],[19,10,19,11],[18,10,18,11],[18,6,18,7],[23,9,24,9],[25,6,26,6],[25,7,26,7],[25,8,26,8],[25,9,26,9]]}
[]
[]
[]
[null,null,null,{"$f":"Титульный!E5","v":"Информация о наличии (отсутствии) технической возможности подключения к системе теплоснабжения, а также о регистрации и ходе реализации заявок о подключении к системе теплоснабжения "}]
[null,null,null,{"$f":"IF(org=0,\"Не определено\",org)","v":"АО \"Теплосеть Санкт-Петербурга\""}]
[]
[]
[]
[]
[]
[]
[]
[]
[]
[]
[]
[]
[null,null,null,"Вид деятельности",null,"Дифференциация по территориям оказания услуг",null,null,null,"Дифференциация по централизованным системам коммунальной инфраструктуры"]
[null,null,null,"№ п/п","Наименование","да/нет","№ п/п",null,"Наименование","да/нет","№ п/п",null,"Наименование"]
[null,null,null,"1","2","3","4",null,"5","6","7",null,"8"]
[]
[null,null,null,"1","Подключение (технологическое присоединение) к системе теплоснабжения","да",null,1,"Всеволожский муниципальный район, Муринское (41612428);","да","","1","Основная система теплоснабжения",null,null,null,null,null,null,null,null,null,null,4190072,"a",1705000]
[null,null,null,null,null,null,null,null,null,null,"",null,""]
[null,null,null,null,null,null,null,2,"Всеволожский муниципальный район, Новодевяткинское (41612458);","да","","1","Основная система теплоснабжения",null,null,null,null,null,null,null,null,null,null,null,"a",1705000]
[null,null,null,null,null,null,null,null,null,null,"",null,""]
[null,null,null,null,null,null,null,3,"Всеволожский муниципальный район, Заневское (41612155);","да","","1","Основная система теплоснабжения",null,null,null,null,null,null,null,null,null,null,null,"a",1705000]
[null,null,null,null,null,null,null,null,null,null,"",null,""]
[null,null,null,null,null,null,null,null,"",null,""]
[null,null,null,null,"",null,null,null,null,null,""]
[null,null,null,null,null,null,null,null,null,null,""]

{"sheet":"Форма 1.0.1","index":6,"n_rows":44,"n_cols":7,"rows_kept":44,"cut":false,"hidden":false,"merged":[[43,4,43,5],[4,3,4,6],[5,3,5,6],[7,3,7,6],[8,3,8,5],[8,6,9,6],[19,3,19,6],[20,3,20,5],[20,6,21,6],[31,3,31,6],[32,3,32,5],[32,6,33,6]]}
[null,null,null,null,null,null,4]
[]
[]
[]
[null,null,null,"Форма 1.0.1 Основные параметры раскрываемой информации 1"]
[null,null,null,{"$f":"IF(org=0,\"Не определено\",org)","v":"АО \"Теплосеть Санкт-Петербурга\""}]
[]
[null,null,22,"Форма 1.0.1"]
[null,null,null,"Параметры формы",null,null,"Описание параметров формы"]
[null,null,null,"№ п/п","Наименование параметра","Информация"]
[null,null,null,"1",2,3,4]
[null,null,null,1,"Дата заполнения/внесения изменений",{"$f":"IF(form_up_date=\"\",\"\",form_up_date)","v":"30.10.2018"},"Указывается календарная дата первичного заполнения или внесения изменений в форму в виде «ДД.ММ.ГГГГ»."]
[null,null,null,"2.1","Наименование централизованной системы коммунальной инфраструктуры","Основная система теплоснабжения","Указывается наименование централизованной системы холодного водоснабжения/горячего водоснабжения/водоотведения/теплоснабжения, к которой относится размещаемая информация.\nВ случае наличия нескольких централизованных систем коммунальной инфраструктуры, информация по каждой из них указывается в отдельной строке. "]
[null,null,null,"3.1","Наименование регулируемого вида деятельности","Подключение (технологическое присоединение) к системе теплоснабжения","Указывается наименование вида регулируемой деятельности."]
[null,null,null,"4.1","Территория оказания услуги по регулируемому виду деятельности","x"]
[null,null,null,{"$f":"D15&\".1\"","v":"4.1.1"},"Субъект РФ",{"$f":"IF(region_name=\"\",\"\",region_name)","v":"Ленинградская область"},"Указывается наименование субъекта Российской Федерации"]
[null,null,null,"4.1.1.1","муниципальный район","Всеволожский муниципальный район","Указывается наименование муниципального района, на территории которого организация оказывает услуги по регулируемому виду деятельности."]
[null,null,null,"4.1.1.1.1","муниципальное образование","Муринское (41612428)","Указывается наименование и код муниципального района, муниципального образования в соответствии с Общероссийским классификатором территорий муниципальных образований (далее - ОКТМО), входящего в муниципальный район, на территории которого организация оказывает услуги по регулируемому виду деятельности.\nВ случае оказания услуг по регулируемому виду деятельности на территории нескольких муниципальных районов (муниципальных образований) данные по каждому их них указываются в отдельной строке."]
[]
[null,null,24,"Форма 1.0.1"]
[null,null,null,"Параметры формы",null,null,"Описание параметров формы"]
[null,null,null,"№ п/п","Наименование параметра","Информация"]
[null,null,null,"1",2,3,4]
[null,null,null,1,"Дата заполнения/внесения изменений",{"$f":"IF(form_up_date=\"\",\"\",form_up_date)","v":"30.10.2018"},"Указывается календарная дата первичного заполнения или внесения изменений в форму в виде «ДД.ММ.ГГГГ»."]
[null,null,null,"2.1","Наименование централизованной системы коммунальной инфраструктуры","Основная система теплоснабжения","Указывается наименование централизованной системы холодного водоснабжения/горячего водоснабжения/водоотведения/теплоснабжения, к которой относится размещаемая информация.\nВ случае наличия нескольких централизованных систем коммунальной инфраструктуры, информация по каждой из них указывается в отдельной строке. "]
[null,null,null,"3.1","Наименование регулируемого вида деятельности","Подключение (технологическое присоединение) к системе теплоснабжения","Указывается наименование вида регулируемой деятельности."]
[null,null,null,"4.1","Территория оказания услуги по регулируемому виду деятельности","x"]
[null,null,null,{"$f":"D27&\".1\"","v":"4.1.1"},"Субъект РФ",{"$f":"IF(region_name=\"\",\"\",region_name)","v":"Ленинградская область"},"Указывается наименование субъекта Российской Федерации"]
[null,null,null,"4.1.1.1","муниципальный район","Всеволожский муниципальный район","Указывается наименование муниципального района, на территории которого организация оказывает услуги по регулируемому виду деятельности."]
[null,null,null,"4.1.1.1.1","муниципальное образование","Новодевяткинское (41612458)","Указывается наименование и код муниципального района, муниципального образования в соответствии с Общероссийским классификатором территорий муниципальных образований (далее - ОКТМО), входящего в муниципальный район, на территории которого организация оказывает услуги по регулируемому виду деятельности.\nВ случае оказания услуг по регулируемому виду деятельности на территории нескольких муниципальных районов (муниципальных образований) данные по каждому их них указываются в отдельной строке."]
[]
[null,null,26,"Форма 1.0.1"]
[null,null,null,"Параметры формы",null,null,"Описание параметров формы"]
[null,null,null,"№ п/п","Наименование параметра","Информация"]
[null,null,null,"1",2,3,4]
[null,null,null,1,"Дата заполнения/внесения изменений",{"$f":"IF(form_up_date=\"\",\"\",form_up_date)","v":"30.10.2018"},"Указывается календарная дата первичного заполнения или внесения изменений в форму в виде «ДД.ММ.ГГГГ»."]
[null,null,null,"2.1","Наименование централизованной системы коммунальной инфраструктуры","Основная система теплоснабжения","Указывается наименование централизованной системы холодного водоснабжения/горячего водоснабжения/водоотведения/теплоснабжения, к которой относится размещаемая информация.\nВ случае наличия нескольких централизованных систем коммунальной инфраструктуры, информация по каждой из них указывается в отдельной строке. "]
[null,null,null,"3.1","Наименование регулируемого вида деятельности","Подключение (технологическое присоединение) к системе теплоснабжения","Указывается наименование вида регулируемой деятельности."]
[null,null,null,"4.1","Территория оказания услуги по регулируемому виду деятельности","x"]
[null,null,null,{"$f":"D39&\".1\"","v":"4.1.1"},"Субъект РФ",{"$f":"IF(region_name=\"\",\"\",region_name)","v":"Ленинградская область"},"Указывается наименование субъекта Российской Федерации"]
[null,null,null,"4.1.1.1","муниципальный район","Всеволожский муниципальный район","Указывается наименование муниципального района, на территории которого организация оказывает услуги по регулируемому виду деятельности."]
[null,null,null,"4.1.1.1.1","муниципальное образование","Заневское (41612155)","Указывается наименование и код муниципального района, муниципального образования в соответствии с Общероссийским классификатором территорий муниципальных образований (далее - ОКТМО), входящего в муниципальный район, на территории которого организация оказывает услуги по регулируемому виду деятельности.\nВ случае оказания услуг по регулируемому виду деятельности на территории нескольких муниципальных районов (муниципальных образований) данные по каждому их них указываются в отдельной строке."]
[]
[null,null,null,null,"  1 Информация по данной форме публикуется при раскрытии информации по каждой из форм."]

{"sheet":"Форма 4.6","index":7,"n_rows":19,"n_cols":10,"rows_kept":19,"cut":false,"hidden":false,"merged":[[7,9,8,9],[4,3,4,6],[5,3,5,6],[7,3,8,3],[7,4,8,4],[7,5,8,5]]}
[null,null,null,null,null,null,4,5,6]
[null,null,null,null,null,"Гкал/час",null,null,null,"Указывается резерв мощности для системы теплоснабжения, тариф для которой не является отличным от тарифов других систем теплоснабжения регулируемой организации.\nПри использовании регулируемой организацией нескольких систем теплоснабжения информация о резерве мощности таких систем указывается в отношении каждой системы теплоснабжения в отдельных строках."]
[]
[]
[null,null,null,{"$f":"Титульный!E5","v":"Информация о наличии (отсутствии) технической возможности подключения к системе теплоснабжения, а также о регистрации и ходе реализации заявок о подключении к системе теплоснабжения "}]
[null,null,null,{"$f":"IF(org=0,\"Не определено\",org)","v":"АО \"Теплосеть Санкт-Петербурга\""}]
[null,null,null,null,null,null,22,24,26]
[null,null,null,"№ п/п","Наименование параметра","Единица измерения","Вид деятельности:\r\n  - Подключение (технологическое присоединение) к системе теплоснабжения\r\n\r\nТерритория оказания услуг:\r\n  - Всеволожский муниципальный район, Муринское (41612428);\r\n\r\nЦентрализованная система теплоснабжения:\r\n  - Основная система теплоснабжения","Вид деятельности:\r\n  - Подключение (технологическое присоединение) к системе теплоснабжения\r\n\r\nТерритория оказания услуг:\r\n  - Всеволожский муниципальный район, Новодевяткинское (41612458);\r\n\r\nЦентрализованная система теплоснабжения:\r\n  - Основная система теплоснабжения","Вид деятельности:\r\n  - Подключение (технологическое присоединение) к системе теплоснабжения\r\n\r\nТерритория оказания услуг:\r\n  - Всеволожский муниципальный район, Заневское (41612155);\r\n\r\nЦентрализованная система теплоснабжения:\r\n  - Основная система теплоснабжения","Описание параметров формы"]
[null,null,null,null,null,null,"Информация","Информация","Информация"]
[null,null,null,"1","2","3",{"$f":"G1&\".1\"","v":"4.1"},{"$f":"H1&\".1\"","v":"5.1"},{"$f":"I1&\".1\"","v":"6.1"}]
[null,null,null,1,"Количество поданных заявок","ед",0,0,0,"Указывается количество поданных заявок на подключение (технологическое присоединение) к системе теплоснабжения в течение отчетного квартала."]
[null,null,null,2,"Количество исполненных заявок","ед",0,0,0,"Указывается количество исполненных заявок на подключение (технологическое присоединение) к системе теплоснабжения в течение отчетного квартала."]
[null,null,null,3,"Количество заявок с решением об отказе в подключении","ед",0,0,0,"Указывается количество заявок с решением об отказе о подключении (технологическому присоединению) к системе теплоснабжения в течение отчетного квартала."]
[null,null,null,4,"Причины отказа в подключении","x",null,null,null,"Указывается текстовое описание причин принятия решений об отказе в подключении (технологическом присоединении) к системе теплоснабжения.\nНе заполняется в случае, если решения об отказе в подключении (технологическом присоединении) в течение отчетного периода не принимались."]
[null,null,null,5,"Резерв мощности системы теплоснабжения в течение квартала, в том числе:","Гкал/час",{"$f":"SUM(G16:G19)","v":0},{"$f":"SUM(H16:H19)","v":0},{"$f":"SUM(I16:I19)","v":0},"Указывается резерв мощности системы теплоснабжения (совокупности систем теплоснабжения в случае, если для них установлены одинаковые тарифы в сфере теплоснабжения.\nВ случае если регулируемыми организациями оказываются услуги по теплоснабжению по нескольким технологически не связанным между собой системам теплоснабжения, и если в отношении указанных систем устанавливаются различные тарифы в сфере теплоснабжения, то информация раскрывается отдельно по каждой системе теплоснабжения."]
[null,null,null,"5.0"]
[null,null,null,"5.1","ТЭЦ-21","Гкал/час",0,0,0,"Указывается резерв мощности для системы теплоснабжения, тариф для которой не является отличным от тарифов других систем теплоснабжения регулируемой организации.\nПри использовании регулируемой организацией нескольких систем теплоснабжения информация о резерве мощности таких систем указывается в отношении каждой системы теплоснабжения в отдельных строках."]
[null,null,"О","5.2","ТЭЦ-5","Гкал/час",0,0,0,"Указывается резерв мощности для системы теплоснабжения, тариф для которой не является отличным от тарифов других систем теплоснабжения регулируемой организации.\nПри использовании регулируемой организацией нескольких систем теплоснабжения информация о резерве мощности таких систем указывается в отношении каждой системы теплоснабжения в отдельных строках."]
[null,null,null,null,"Добавить централизованную систему теплоснабжения"]

{"sheet":"Сведения об изменении","index":8,"n_rows":14,"n_cols":5,"rows_kept":14,"cut":false,"hidden":true,"merged":[[6,3,6,4],[7,3,7,4]]}
[]
[]
[]
[]
[]
[]
[null,null,null,"Сведения об изменениях в первоначально опубликованной информации"]
[null,null,null,{"$f":"IF(org=0,\"Не определено\",org)","v":"АО \"Теплосеть Санкт-Петербурга\""}]
[]
[null,null,null,"№ п/п","Сведения"]
[null,null,null,"1","2"]
[null,null,null,0]
[null,null,null,1]
[null,null,null,null,"Добавить строку"]

{"sheet":"Форма 1.0.2","index":9,"n_rows":15,"n_cols":13,"rows_kept":15,"cut":false,"hidden":true,"merged":[[11,10,12,10],[14,4,14,9],[4,3,4,9],[7,3,7,9],[7,10,9,10],[8,3,9,3],[8,4,8,5],[8,6,8,9]]}
[]
[]
[]
[]
[null,null,null,"Форма 1.0.2 Информация о публикации в печатных изданиях 2"]
[]
[]
[null,null,null,"Параметры формы",null,null,null,null,null,null,"Описание параметров формы"]
[null,null,null,"№ п/п","Форма публикации",null,"Официальное печатное издание"]
[null,null,null,null,"Номер","Наименование","Наименование","Номер","Дата выпуска","Ссылка на документ"]
[null,null,null,"1","2","3","4","5","6","7","8"]
["3","",null,"1",null,null,null,null,null,null,"В колонке «Дата выпуска» дата выпуска печатного издания указывается в виде «ДД.ММ.ГГГГ».\nВ колонке «Ссылка на документ» указывается ссылка на отсканированную копию печатного издания, предварительно загруженную в хранилище федеральной государственной информационной системы «Единая информационно-аналитическая система «Федеральный орган регулирования - региональные органы регулирования - субъекты регулирования» (далее – ФГИС ЕИАС), с опубликованной информацией.\nВ случае публикации информации в нескольких печатных изданиях информация по каждому из них указывается в отдельной строке.",null,{"$f":"IF(ISERROR(INDEX(kind_of_nameforms,MATCH(E12,kind_of_forms,0),1)),\"\",INDEX(kind_of_nameforms,MATCH(E12,kind_of_forms,0),1))","v":""}]
[null,null,null,null,"Добавить строку"]
[]
[null,null,null,null,"2 В данной форме публикуется информация по каждой из форм раскрытия, данные в которой относятся к муниципальному образованию, в котором отсутствует доступ в информационно-телекоммуникационную сеть «Интернет» (далее – сеть «Интернет»)."]

{"sheet":"Комментарии","index":10,"n_rows":13,"n_cols":5,"rows_kept":13,"cut":false,"hidden":false,"merged":[[6,3,6,4],[7,3,7,4]]}
[]
[]
[]
[]
[]
[]
[null,null,null,"Комментарии"]
[null,null,null,{"$f":"IF(org=0,\"Не определено\",org)","v":"АО \"Теплосеть Санкт-Петербурга\""}]
[]
[null,null,null,"№ п/п","Комментарий"]
[null,null,null,"1","2"]
[null,null,null,0]
[null,null,null,null,"Добавить"]

{"sheet":"Проверка","index":11,"n_rows":4,"n_cols":5,"rows_kept":4,"cut":false,"hidden":false,"merged":[[1,1,1,4]]}
[]
[null,"Результат проверки"]
[]
[null,"Ссылка1","Ссылка2","Причина","Статус"]

{"sheet":"modReestr","index":12,"n_rows":0,"n_cols":0,"rows_kept":0,"cut":false,"hidden":true,"merged":[]}

{"sheet":"AllSheetsInThisWorkbook","index":13,"n_rows":39,"n_cols":2,"rows_kept":39,"cut":false,"hidden":true,"merged":[]}
["Расчетные листы","Скрытые листы"]
["Инструкция","modReestr"]
["Лог обновления","AllSheetsInThisWorkbook"]
["Титульный","TEHSHEET"]
["Территории","modCheckCyan"]
["Дифференциация","modInfo"]
["Форма 1.0.1","et_union_hor"]
["Форма 4.6","et_union_vert"]
["Сведения об изменении","modList00"]
["Форма 1.0.2","modList01"]
["Комментарии","modList02"]
["Проверка","modList03"]
[null,"modList04"]
[null,"modList07"]
[null,"modList09"]
[null,"modHTTP"]
[null,"modfrmRegion"]
[null,"MR_LIST"]
[null,"REESTR_VT"]
[null,"REESTR_VED"]
[null,"modfrmReestrObj"]
[null,"DataOrg"]
[null,"modProv"]
[null,"modfrmReestr"]
[null,"modUpdTemplMain"]
[null,"REESTR_ORG"]
[null,"modClassifierValidate"]
[null,"modHyp"]
[null,"modfrmDateChoose"]
[null,"modComm"]
[null,"modThisWorkbook"]
[null,"REESTR_MO"]
[null,"REESTR_MO_FILTER"]
[null,"modfrmReestrMR"]
[null,"modServiceModule"]
[null,"modfrmCheckUpdates"]
[null,"REESTR_DS"]
[null,"REESTR_CHS"]
[null,"REESTR_LINK"]

{"sheet":"TEHSHEET","index":14,"n_rows":87,"n_cols":20,"rows_kept":87,"cut":false,"hidden":true,"merged":[[0,18,0,19]]}
["REGION",null,"year_list","logical","Месяц\n(MONTH)","Квартал\n(QUARTER)","Месяц\n(kind_of_publication)","Единица измерения объема оказываемых услуг ГВС\n/kind_of_unit_GVS/","Вид тарифа\n/list_of_tariff/","mr_id","версия шаблона\n (DocProp_Version)","0.1","Тип отчета\ndata_type","type_org_list",null,null,null,null,"Перечень форм\n(kind_of_forms)"]
["Алтайский край",null,2013,"да","январь","I квартал","На официальном сайте организации","тыс.куб.м/сутки",null,52,"код шаблона\n(DocProp_TemplateCode)","FAS.JKH.OPEN.INFO.QUARTER.HVS","первичное раскрытие информации","Регулируемая организация",null,null,null,null,"Форма 1.0.1","Основные параметры раскрываемой информации"]
["Амурская область",null,2014,"нет","февраль","II квартал","На сайте регулирующего органа","Гкал/час","Без дифференциации","sys_id","сфера\n(TSphere)","ХВС","изменения в раскрытой ранее информации","Единая теплоснабжающая организация",null,null,null,null,"Форма 4.6",{"$f":"Титульный!E5","v":"Информация о наличии (отсутствии) технической возможности подключения к системе теплоснабжения, а также о регистрации и ходе реализации заявок о подключении к системе теплоснабжения "}]
["Архангельская область",null,2015,null,"март","III квартал",null,"куб.м/час",null,104,"сфера(латиница)\n(TSphere_trans)","VS",null,"Теплоснабжающая организация в ценовой зоне теплоснабжения"]
["Астраханская область",null,2016,null,"апрель","IV квартал",null,null,null,null,"сфера расширено\n(TSphere_full)",null,null,"Теплосетевая организация в ценовой зоне теплоснабжения"]
["Белгородская область",null,2017,null,"май"]
["Брянская область",null,2018,null,"июнь"]
["Владимирская область",null,2019,null,"июль",null,null,null,null,null,"true"]
["Волгоградская область",null,2020,null,"август"]
["Вологодская область",null,null,null,"сентябрь"]
["Воронежская область",null,null,null,"октябрь"]
["г.Байконур",null,null,null,"ноябрь"]
["г. Москва",null,null,null,"декабрь"]
["г.Санкт-Петербург"]
["г.Севастополь"]
["Еврейская автономная область",null,null,null,null,null,"Текущая дата"]
["Забайкальский край",null,"Организация",{"$f":"IF(f_year = \"\",\"\", IF(LEN(f_quart)=0,\"\",IF(f_quart=\"I квартал\", \"01.01.\"&f_year,IF(f_quart=\"II квартал\",\"01.04.\"&f_year,(IF(f_quart=\"III квартал\", \"01.07.\"&f_year,\"01.10.\"&f_year)))) ))","v":"01.07.2018"},{"$f":"IF(f_year = \"\",\"\", IF(LEN(f_quart)=0,\"\",IF(f_quart=\"I квартал\", \"31.03.\"& f_year,IF(f_quart=\"II квартал\",\"30.06.\"& f_year,(IF(f_quart=\"III квартал\", \"30.09.\"& f_year,\"31.12.\"& f_year)))) ))","v":"30.09.2018"},null,"30.10.2018 19:55:40"]
["Ивановская область"]
["Иркутская область",null,null,null,null,null,"Признак изменения данных на листе Доступ к товарам и услугам"]
["Кабардино-Балкарская республика",null,"Виды деятельности",null,null,null,true]
["Калининградская область"]
["Калужская область"]
["Камчатский край"]
["Карачаево-Черкесская республика"]
["Кемеровская область"]
["Кировская область"]
["Костромская область"]
["Краснодарский край"]
["Красноярский край"]
["Курганская область"]
["Курская область"]
["Ленинградская область"]
["Липецкая область"]
["Магаданская область"]
["Московская область"]
["Мурманская область"]
["Ненецкий автономный округ"]
["Нижегородская область"]
["Новгородская область"]
["Новосибирская область"]
["Омская область"]
["Оренбургская область"]
["Орловская область"]
["Пензенская область"]
["Пермский край"]
["Приморский край"]
["Псковская область"]
["Республика Адыгея"]
["Республика Алтай"]
["Республика Башкортостан"]
["Республика Бурятия"]
["Республика Дагестан"]
["Республика Ингушетия"]
["Республика Калмыкия"]
["Республика Карелия"]
["Республика Коми"]
["Республика Крым"]
["Республика Марий Эл"]
["Республика Мордовия"]
["Республика Саха (Якутия)"]
["Республика Северная Осетия-Алания"]
["Республика Татарстан"]
["Республика Тыва"]
["Республика Хакасия"]
["Ростовская область"]
["Рязанская область"]
["Самарская область"]
["Саратовская область"]
["Сахалинская область"]
["Свердловская область"]
["Смоленская область"]
["Ставропольский край"]
["Тамбовская область"]
["Тверская область"]
["Томская область"]
["Тульская область"]
["Тюменская область"]
["Удмуртская республика"]
["Ульяновская область"]
["Хабаровский край"]
["Ханты-Мансийский автономный округ"]
["Челябинская область"]
["Чеченская республика"]
["Чувашская республика"]
["Чукотский автономный округ"]
["Ямало-Ненецкий автономный округ"]
["Ярославская область"]

{"sheet":"modCheckCyan","index":15,"n_rows":25,"n_cols":1,"rows_kept":25,"cut":false,"hidden":true,"merged":[]}
[]
[{"$f":"IF('Сведения об изменении'!$E$13=\"\",1,0)","v":1}]
[{"$f":"IF(Дифференциация!$E$22=\"\",1,0)","v":0}]
[{"$f":"IF(Территории!$E$12=\"\",1,0)","v":0}]
[{"$f":"IF(Территории!$E$17=\"\",1,0)","v":0}]
[{"$f":"IF(Территории!$E$22=\"\",1,0)","v":0}]
[{"$f":"IF(Дифференциация!$I$22=\"\",1,0)","v":0}]
[{"$f":"IF(Дифференциация!$I$24=\"\",1,0)","v":0}]
[{"$f":"IF(Дифференциация!$J$24=\"\",1,0)","v":0}]
[{"$f":"IF(Дифференциация!$I$26=\"\",1,0)","v":0}]
[{"$f":"IF(Дифференциация!$J$26=\"\",1,0)","v":0}]
[{"$f":"IF(Дифференциация!$M$22=\"\",1,0)","v":0}]
[{"$f":"IF(Дифференциация!$M$24=\"\",1,0)","v":0}]
[{"$f":"IF(Дифференциация!$M$26=\"\",1,0)","v":0}]
[{"$f":"IF('Форма 4.6'!$G$11=\"\",1,0)","v":0}]
[{"$f":"IF('Форма 4.6'!$H$11=\"\",1,0)","v":0}]
[{"$f":"IF('Форма 4.6'!$I$11=\"\",1,0)","v":0}]
[{"$f":"IF('Форма 4.6'!$G$12=\"\",1,0)","v":0}]
[{"$f":"IF('Форма 4.6'!$H$12=\"\",1,0)","v":0}]
[{"$f":"IF('Форма 4.6'!$I$12=\"\",1,0)","v":0}]
[{"$f":"IF('Форма 4.6'!$G$13=\"\",1,0)","v":0}]
[{"$f":"IF('Форма 4.6'!$H$13=\"\",1,0)","v":0}]
[{"$f":"IF('Форма 4.6'!$I$13=\"\",1,0)","v":0}]
[{"$f":"IF('Форма 4.6'!$E$17=\"\",1,0)","v":0}]
[{"$f":"IF('Форма 4.6'!$E$18=\"\",1,0)","v":0}]

{"sheet":"modInfo","index":16,"n_rows":11,"n_cols":2,"rows_kept":11,"cut":false,"hidden":true,"merged":[[4,3,4,10],[0,3,0,10],[1,3,1,10],[2,3,2,10],[3,3,3,10]]}
[null,"Территории"]
[1,"Наименование территории оказания услуг для целей идентификации"]
[2,"Муниципальные районы и муниципальные образования, на территории которых осуществляется оказание услуг"]
[null,"Дифференциация"]
[1,"В случае, если регулируемая организация осуществляет несколько видов деятельности, информация о которых подлежит раскрытию, информация по каждому виду деятельности раскрывается отдельно."]
[2,"Поле заполняется выбором значений из списка. Если значений для выбора нет - убедитесь, что лист \"Территории\" заполнен."]
[3,"Условное наименование централизованной системы коммунальной инфраструктуры для целей идентификации."]
[4,"В случае, если регулируемыми организациями оказываются услуги по нескольким технологически не связанным между собой  централизованным системам коммунальной инфраструктуры и если в отношении указанных централизованных систем устанавливаются различные тарифы, то информация раскрывается отдельно по каждой централизованной системе коммунальной инфраструктуры."]
[null,"Сведения об изменении"]
[1,"Лист заполняется в случае, если на Титульном листе в поле \"Тип отчета\" выбрано значение «Изменения в раскрытой ранее информации»."]
[null,"Нет доступных обновлений, версия отчёта актуальна"]

{"sheet":"et_union_hor","index":17,"n_rows":60,"n_cols":26,"rows_kept":60,"cut":false,"hidden":true,"merged":[[19,7,20,7],[28,3,30,3],[28,4,30,4],[28,5,30,5],[28,6,29,6],[28,7,29,7],[34,7,35,7],[34,8,35,8],[34,9,35,9],[28,8,29,8],[28,9,29,9],[50,3,50,5],[50,6,51,6],[14,2,15,2],[14,3,15,3],[14,4,15,4],[19,2,20,2],[19,5,20,5],[34,6,35,6],[19,6,20,6],[49,3,49,6]]}
[]
[]
["et_Comm"]
[]
[]
[]
["et_List04"]
[]
[]
[]
[]
[]
["et_List09_0"]
[]
[null,"auto",null,1,null,null,0,null,null,"0",null,null,{"$f":"mergeValue(H15)","v":0},null,null,{"$f":"IF(ISERROR(MATCH(MID(Q15,1,250),MID(note_ter,1,250),0)),\"n\",\"y\")","v":"y"},null,{"$f":"K15&\"(\"&L15&\")\"","v":"()"}]
[null,null,null,null,null,null,null,"Добавить МР"]
[]
["et_List09_1"]
[]
[null,"auto",null,null,null,null,0,null,null,"0",null,null,{"$f":"mergeValue(H20)","v":0},null,null,null,null,{"$f":"K20&\"(\"&L20&\")\"","v":"()"}]
[null,null,null,null,null,null,null,null,null,null,"Добавить МО"]
[]
["et_List09_2"]
[]
[null,"auto",null,null,null,null,null,null,null,0,null,null,{"$f":"mergeValue(H25)","v":0},null,null,null,null,{"$f":"K25&\" (\"&L25&\")\"","v":" ()"}]
[]
["et_List07_1"]
[]
[null,null,null,"1",null,"нет",null,1,null,"нет",null,"1",null,null,null,null,null,null,null,null,null,null,null,null,"a",1705000]
[null,null,null,null,null,null,null,null,null,null,null,null,"Добавить централизованную систему коммунальной инфраструктуры"]
[null,null,null,null,null,null,null,null,"Добавить описание территории оказания услуг"]
[]
["et_List07_4"]
[]
[null,null,null,null,null,null,null,1,null,"нет",null,"1",null,null,null,null,null,null,null,null,null,null,null,null,"a",1705000]
[null,null,null,null,null,null,null,null,null,null,null,null,"Добавить централизованную систему коммунальной инфраструктуры"]
[]
["et_List07_5"]
[]
[null,null,null,null,null,null,null,null,null,null,null,"1",null,null,null,null,null,null,null,null,null,null,null,null,"a",1705000]
[]
[]
["et_List03"]
[]
["3","",null,null,null,null,null,null,null,null,null,null,{"$f":"IF(ISERROR(INDEX(kind_of_nameforms,MATCH(E45,kind_of_forms,0),1)),\"\",INDEX(kind_of_nameforms,MATCH(E45,kind_of_forms,0),1))","v":""}]
[]
["et_List02_st","et_List02_ter","et_List02_mr","et_List02_mo"]
[]
[]
[null,null,null,"Форма 1.0.1"]
[null,null,null,"Параметры формы",null,null,"Описание параметров формы"]
[null,null,null,"№ п/п","Наименование параметра","Информация"]
[null,null,null,"1",2,3,4]
[null,null,null,1,"Дата заполнения/внесения изменений",{"$f":"IF(form_up_date=\"\",\"\",form_up_date)","v":"30.10.2018"},"Указывается календарная дата первичного заполнения или внесения изменений в форму в виде «ДД.ММ.ГГГГ»."]
[null,null,null,"2.1","Наименование централизованной системы коммунальной инфраструктуры",null,"Указывается наименование централизованной системы холодного водоснабжения/горячего водоснабжения/водоотведения/теплоснабжения, к которой относится размещаемая информация.\nВ случае наличия нескольких централизованных систем коммунальной инфраструктуры, информация по каждой из них указывается в отдельной строке. "]
[null,null,null,"3.1","Наименование регулируемого вида деятельности",null,"Указывается наименование вида регулируемой деятельности."]
[null,null,null,"4.1","Территория оказания услуги по регулируемому виду деятельности","x"]
[null,null,null,{"$f":"D57&\".1\"","v":"4.1.1"},"Субъект РФ",{"$f":"IF(region_name=\"\",\"\",region_name)","v":"Ленинградская область"},"Указывается наименование субъекта Российской Федерации"]
[null,null,null,"4.1.1.1","муниципальный район",null,"Указывается наименование муниципального района, на территории которого организация оказывает услуги по регулируемому виду деятельности."]
[null,null,null,"4.1.1.1.1","муниципальное образование",null,"Указывается наименование и код муниципального района, муниципального образования в соответствии с Общероссийским классификатором территорий муниципальных образований (далее - ОКТМО), входящего в муниципальный район, на территории которого организация оказывает услуги по регулируемому виду деятельности.\nВ случае оказания услуг по регулируемому виду деятельности на территории нескольких муниципальных районов (муниципальных образований) данные по каждому их них указываются в отдельной строке."]

{"sheet":"et_union_vert","index":18,"n_rows":0,"n_cols":0,"rows_kept":0,"cut":false,"hidden":true,"merged":[]}

{"sheet":"modList00","index":19,"n_rows":0,"n_cols":0,"rows_kept":0,"cut":false,"hidden":true,"merged":[]}

{"sheet":"modList01","index":20,"n_rows":0,"n_cols":0,"rows_kept":0,"cut":false,"hidden":true,"merged":[]}

{"sheet":"modList02","index":21,"n_rows":0,"n_cols":0,"rows_kept":0,"cut":false,"hidden":true,"merged":[]}

{"sheet":"modList03","index":22,"n_rows":0,"n_cols":0,"rows_kept":0,"cut":false,"hidden":true,"merged":[]}

{"sheet":"modList04","index":23,"n_rows":0,"n_cols":0,"rows_kept":0,"cut":false,"hidden":true,"merged":[]}

{"sheet":"modList07","index":24,"n_rows":0,"n_cols":0,"rows_kept":0,"cut":false,"hidden":true,"merged":[[5,0,6,1],[17,0,18,0]]}

{"sheet":"modList09","index":25,"n_rows":0,"n_cols":0,"rows_kept":0,"cut":false,"hidden":true,"merged":[]}

{"sheet":"modHTTP","index":26,"n_rows":0,"n_cols":0,"rows_kept":0,"cut":false,"hidden":true,"merged":[]}

{"sheet":"modfrmRegion","index":27,"n_rows":0,"n_cols":0,"rows_kept":0,"cut":false,"hidden":true,"merged":[]}

{"sheet":"MR_LIST","index":28,"n_rows":0,"n_cols":0,"rows_kept":0,"cut":false,"hidden":true,"merged":[]}

{"sheet":"REESTR_VT","index":29,"n_rows":0,"n_cols":0,"rows_kept":0,"cut":false,"hidden":true,"merged":[]}

{"sheet":"REESTR_VED","index":30,"n_rows":11,"n_cols":2,"rows_kept":11,"cut":false,"hidden":true,"merged":[]}
["ID_TARIFF_NAME","VED_NAME"]
[4190064,"Производство тепловой энергии. Некомбинированная выработка"]
[4190065,"Производство тепловой энергии. Комбинированная выработка с уст. мощностью производства электрической энергии менее 25 МВт"]
[4190066,"Производство тепловой энергии. Комбинированная выработка с уст. мощностью производства электрической энергии 25 МВт и более"]
[4190067,"Производство. Теплоноситель"]
[4190068,"Передача. Тепловая энергия"]
[4190069,"Передача. Теплоноситель"]
[4190070,"Сбыт. Тепловая энергия"]
[4190071,"Сбыт. Теплоноситель"]
[4190072,"Подключение (технологическое присоединение) к системе теплоснабжения"]
[4190073,"Поддержание резервной тепловой мощности при отсутствии потребления тепловой энергии"]

{"sheet":"modfrmReestrObj","index":31,"n_rows":0,"n_cols":0,"rows_kept":0,"cut":false,"hidden":true,"merged":[]}

{"sheet":"DataOrg","index":32,"n_rows":0,"n_cols":0,"rows_kept":0,"cut":false,"hidden":true,"merged":[]}

{"sheet":"modfrmReestr","index":33,"n_rows":0,"n_cols":0,"rows_kept":0,"cut":false,"hidden":true,"merged":[]}

{"sheet":"modUpdTemplMain","index":34,"n_rows":0,"n_cols":0,"rows_kept":0,"cut":false,"hidden":true,"merged":[]}

{"sheet":"REESTR_ORG","index":35,"n_rows":174,"n_cols":10,"rows_kept":174,"cut":false,"hidden":true,"merged":[]}
["№","REGION_ID","REGION_NAME","RST_ORG_ID","ORG_NAME","INN_NAME","KPP_NAME","ORG_START_DATE","ORG_END_DATE"]
[1,"2610","Ленинградская область","26523762","АО \"Выборгтеплоэнерго\"","4704062064","470401001","09-06-2010 00:00:00",null,"WARM"]
[2,"2610","Ленинградская область","26373306","АО \"ГАТЧИНСКИЙ ККЗ\"","4719000303","470501001",null,null,"WARM"]
[3,"2610","Ленинградская область","30335229","АО \"ГУ ЖКХ\"","5116000922","770401001",null,null,"WARM"]
[4,"2610","Ленинградская область","26373221","АО \"Газпром газораспределение Ленинградская область\"","4700000109","472450001",null,null,"WARM"]
[5,"2610","Ленинградская область","31208153","АО \"ИЭК\"","4725005187","472501001",null,null,"WARM"]
[6,"2610","Ленинградская область","28875608","АО \"КНАУФ ПЕТРОБОРД\"","4719011873","470501001",null,null,"WARM"]
[7,"2610","Ленинградская область","26373248","АО \"Коммунальные системы Гатчинского района\"","4705039967","470501001",null,null,"WARM"]
[8,"2610","Ленинградская область","26506539","АО \"Концерн Росэнергоатом\" филиал \"Ленинградская атомная станция\"","7721632827","472643001",null,null,"WARM"]
[9,"2610","Ленинградская область","26523683","АО \"ЛОТЭК\"","4716028445","470701001","09-06-2010 00:00:00",null,"WARM"]
[10,"2610","Ленинградская область","28942511","АО \"НПО \"Поиск\"","4703142849","470301001",null,null,"WARM"]
[11,"2610","Ленинградская область","26524292","АО \"Нева Энергия\"","7802312374","471302001","09-06-2010 00:00:00",null,"WARM"]
[12,"2610","Ленинградская область","30384822","АО \"ПТС\"","4715030160","471501001","01-09-2015 00:00:00",null,"WARM"]
[13,"2610","Ленинградская область","26373316","АО \"Промышленный комплекс \"Энергия\"","4720011010","472501001",null,null,"WARM"]
[14,"2610","Ленинградская область","26523673","АО \"РУСАЛ Бокситогорск\"","4701000013","471501001","09-06-2010 00:00:00",null,"WARM"]
[15,"2610","Ленинградская область","27250262","АО \"РЭУ\"","7714783092","602743002","31-08-2010 00:00:00",null,"WARM"]
[16,"2610","Ленинградская область","26828034","АО \"РЭУ\" филиал \"Санкт-Петербургский\"","7714783092","783943001",null,null,"WARM"]
[17,"2610","Ленинградская область","26555650","АО \"Теплосеть Санкт-Петербурга\"","7810577007","781001001",null,null,"WARM"]
[18,"2610","Ленинградская область","30427522","АО ГУ ЖКХ ОП \"Санкт-Петербургское\"","5116000922","784245001","12-10-2015 00:00:00",null,"WARM"]
[19,"2610","Ленинградская область","28967688","Банк России (Пансионат с лечением \"Зеленый бор\" Отделения по Ленинградской области Северо-Западного  ГУ Банка России)","7702235133","471045001","29-04-2015 00:00:00",null,"WARM"]
[20,"2610","Ленинградская область","26373297","ГБОУ СПО ЛО \"Лисинский лесной колледж\"","4716001436","471601001",null,null,"WARM"]
[21,"2610","Ленинградская область","28949934","ГКУ ЛО\"ОБЪЕКТ № 58 ПРАВИТЕЛЬСТВА ЛЕНИНГРАДСКОЙ ОБЛАСТИ\"","4716038771","471601001",null,null,"WARM"]
[22,"2610","Ленинградская область","30794671","ГКУЗ ЛО \"ДПБ\"","4719005020","470501001","23-05-2016 00:00:00",null,"WARM"]
[23,"2610","Ленинградская область","26373265","ГП \"Лодейнопольское ДРСУ\"","4709001851","471101001",null,null,"WARM"]
[24,"2610","Ленинградская область","26561669","ГП \"Лужское ДРСУ\"","4710000517","471001001",null,null,"WARM"]
[25,"2610","Ленинградская область","26373237","ГП \"Рощинское дорожное ремонтно-эксплуатационное управление\"","4704050397","470401001",null,null,"WARM"]
[26,"2610","Ленинградская область","26373287","ГП \"Тихвинское ДРСУ\"","4715000447","471501001",null,null,"WARM"]
[27,"2610","Ленинградская область","26422494","ГУП \"Водоканал Санкт-Петербурга\"","7830000426","783450001",null,null,"WARM"]
[28,"2610","Ленинградская область","26361126","ГУП \"ТЭК СПб\"","7830001028","783450001",null,null,"WARM"]
[29,"2610","Ленинградская область","27168319","ГУП ЛО  \"Тепловые сети г.Тихвина\"","4715025755","471501001","20-09-2011 00:00:00",null,"WARM"]
[30,"2610","Ленинградская область","26373225","ЗАО \"Агрофирма  \"Выборжец\"","4703006839","470301001",null,null,"WARM"]
[31,"2610","Ленинградская область","26524163","ЗАО \"Интернешнл Пейпер\"","4704012472","470401001",null,null,"WARM"]
[32,"2610","Ленинградская область","26373235","ЗАО \"Каменногорское карьероуправление\"","4704002227","470401001",null,null,"WARM"]
[33,"2610","Ленинградская область","28828779","ЗАО \"Крионорд\"","7825332183","781001001","20-11-2014 00:00:00",null,"WARM"]
[34,"2610","Ленинградская область","26319703","ЗАО \"СЗИПК\"","7819020549","471501001","09-04-1999 00:00:00",null,"WARM"]
[35,"2610","Ленинградская область","26561712","ЗАО \"Северное\"","7814054375","781401001",null,null,"WARM"]
[36,"2610","Ленинградская область","26373268","ЗАО \"Сосновоагропромтехника\"","4712002559","471201001",null,null,"WARM"]
[37,"2610","Ленинградская область","26373242","ЗАО \"Термо-Лайн\"","4704052517","470401001",null,null,"WARM"]
[38,"2610","Ленинградская область","27331943","ИП Бушин И.В.","780520554728","отсутствует",null,null,"WARM"]
[39,"2610","Ленинградская область","26523738","ИФ РАН","7801022898","780101001","09-06-2010 00:00:00",null,"WARM"]
[40,"2610","Ленинградская область","27851016","ЛОГП \"Гатчинское дорожное ремонтно-строительное управление\"","4719002004","471090100",null,null,"WARM"]
[41,"2610","Ленинградская область","26561751","МП \"Агалатово-Сервис\"","4703087267","470301001",null,null,"WARM"]
[42,"2610","Ленинградская область","26561667","МП \"Жилищное хозяйство\"","4708001129","472701001",null,null,"WARM"]
[43,"2610","Ленинградская область","26640400","МП \"Северное ремонтно-эксплуатационное предприятие\"","4703064012","470301001",null,null,"WARM"]
[44,"2610","Ленинградская область","26638805","МП \"ТЭКК\"","4703117909","470301001","25-10-2013 00:00:00",null,"WARM"]
[45,"2610","Ленинградская область","28813153","МП \"ТеплоРесурс\" МО Кузнечнинское ГП","4712025919","471201001","16-09-2014 00:00:00",null,"WARM"]
[46,"2610","Ленинградская область","28504079","МП МО город Коммунар \"ЖКС\"","4705062476","470501001","30-04-2013 00:00:00",null,"WARM"]
[47,"2610","Ленинградская область","28284366","МРФ \"Северо-Запад\" ПАО \"Ростелеком\"","7707049388","784243001",null,null,"WARM"]
[48,"2610","Ленинградская область","27883622","МУКП \"Свердловские коммунальные системы\"","4703128682","470301001",null,null,"WARM"]
[49,"2610","Ленинградская область","31210480","МУП \"АУРП\"","4712128960","471201001",null,null,"WARM"]
[50,"2610","Ленинградская область","26638809","МУП \"Бугровские тепловые сети\"","4703103575","470301001",null,null,"WARM"]
[51,"2610","Ленинградская область","31209792","МУП \"Ефимовские тепловые сети\"","4715031357","471501001",null,null,"WARM"]
[52,"2610","Ленинградская область","31211905","МУП \"Зеленый город\"","4716041358","471601001",null,null,"WARM"]
[53,"2610","Ленинградская область","26373257","МУП \"НазияКомСервис\"","4706027280","470601001",null,null,"WARM"]
[54,"2610","Ленинградская область","26373253","МУП \"ПриладожскЖКХ»","4706005311","470601001",null,null,"WARM"]
[55,"2610","Ленинградская область","26640632","МУП \"Романовские коммунальные системы\"","4703117955","470301001",null,null,"WARM"]
[56,"2610","Ленинградская область","27943060","МУП \"Северное Cияние\"","4706033397","470601001",null,null,"WARM"]
[57,"2610","Ленинградская область","26524169","МУП \"Тепловые сети\" г. Гатчина","4705014698","470502001",null,null,"WARM"]
[58,"2610","Ленинградская область","31210597","МУП \"Теплосеть Плодовое\"","4712028540","471201001",null,null,"WARM"]
[59,"2610","Ленинградская область","27222108","МУП \"Центр ЖКХ\"","4706031872","470601001","01-09-2011 00:00:00",null,"WARM"]
[60,"2610","Ленинградская область","28001460","МУП «Низино»","4720031916","472001001","25-12-2009 00:00:00",null,"WARM"]
[61,"2610","Ленинградская область","31211235","МУП «Теплосеть Сосново»","4712028451","471201001",null,null,"WARM"]
[62,"2610","Ленинградская область","26524179","МУП ЖКХ \"Сиверский\"","4705030450","470501001","09-06-2010 00:00:00",null,"WARM"]
[63,"2610","Ленинградская область","26768264","МУП ПГП «КБ»","4711006504","471101001",null,null,"WARM"]
[64,"2610","Ленинградская область","26773425","МУП УЖКХ МО ВИЛЛОЗСКОЕ СП","4720024228","472001001",null,null,"WARM"]
[65,"2610","Ленинградская область","28136066","НЛРВПиС","7812024833","470602001","25-03-2013 00:00:00",null,"WARM"]
[66,"2610","Ленинградская область","26639730","ОАО \"Всеволожские тепловые сети\"","4703096470","470301001",null,null,"WARM"]
[67,"2610","Ленинградская область","26380458","ОАО \"Завод Сланцы\"","4713000931","471301001",null,null,"WARM"]
[68,"2610","Ленинградская область","26373240","ОАО \"Птицефабрика Ударник\"","4704083071","470401001",null,null,"WARM"]
[69,"2610","Ленинградская область","26814895","ОАО \"РЖД\" (Октябрьская дирекция по тепловодоснабжению - СП Центральной дирекции по тепловодоснабжению - филиала ОАО \"РЖД\")","7708503727","780445015","01-04-2011 00:00:00",null,"WARM"]
[70,"2610","Ленинградская область","26373304","ОАО \"Сясьский целлюлозно-бумажный комбинат\"","4718011856","470250002",null,null,"WARM"]
[71,"2610","Ленинградская область","26640411","ОАО \"Тепловые сети\" филиал  \"Волосовские коммунальные системы\"","4716024190","470543002",null,null,"WARM"]
[72,"2610","Ленинградская область","26524308","ОАО \"Тепловые сети\", г. Тосно","4716024190","471601001","09-06-2010 00:00:00",null,"WARM"]
[73,"2610","Ленинградская область","28078723","ОАО \"Терволовский лесной питомник\"","4705037350","470501001",null,null,"WARM"]
[74,"2610","Ленинградская область","26373290","ОАО \"УЖКХ\" (Тихвинского района)","4715014471","471501001",null,null,"WARM"]
[75,"2610","Ленинградская область","26524171","ОАО \"Узор\"","4719002999","470501001",null,null,"WARM"]
[76,"2610","Ленинградская область","26373243","ОАО \"Управляющая компания по ЖКХ\"","4704061945","470401001",null,null,"WARM"]
[77,"2610","Ленинградская область","28261957","ОАО \"Усть-Лужский Контейнерный Терминал\"","4707013562","470707001","26-08-2013 00:00:00",null,"WARM"]
[78,"2610","Ленинградская область","26523713","ООО  \"БазэлЦемент-Пикалево\"","4715030610","471501001","09-06-2010 00:00:00",null,"WARM"]
[79,"2610","Ленинградская область","28877960","ООО \" УК \"СпецМонтаж 24\"","7841398551","784101001",null,null,"WARM"]
[80,"2610","Ленинградская область","28148752","ООО \"АКВАТЕРМ\"","4707032565","470701001",null,null,"WARM"]
[81,"2610","Ленинградская область","26640553","ООО \"Аква Норд-Вест\"","7801432887","780101001",null,null,"WARM"]
[82,"2610","Ленинградская область","31206288","ООО \"Алгоритм Девелопмент\"","7842055902","780201001",null,null,"WARM"]
[83,"2610","Ленинградская область","30389240","ООО \"БАЗИС-ЭНЕРГО\"","7801474904","780101001","12-11-2015 00:00:00",null,"WARM"]
[84,"2610","Ленинградская область","28274744","ООО \"БИОТЕПЛОСНАБ\"","7811553714","471101001","07-10-2013 00:00:00",null,"WARM"]
[85,"2610","Ленинградская область","30847189","ООО \"Балтийский Дом\"","7802160435","781401001","25-10-2016 00:00:00",null,"WARM"]
[86,"2610","Ленинградская область","26524282","ООО \"Биотеплоснаб\"","4712123698","471201001","09-06-2010 00:00:00",null,"WARM"]
[87,"2610","Ленинградская область","30850125","ООО \"Бис Мелиор Трейд\"","4703144194","470301001","07-11-2016 00:00:00",null,"WARM"]
[88,"2610","Ленинградская область","28421985","ООО \"БокситогорскТеплоРесурс\"","4715028280","471501001","25-10-2013 00:00:00",null,"WARM"]
[89,"2610","Ленинградская область","28545782","ООО \"ВОДОКАНАЛ\"","4703137398","470301001","19-06-2014 00:00:00",null,"WARM"]
[90,"2610","Ленинградская область","26380445","ООО \"Водоканал\"","4711008759","471101001",null,null,"WARM"]
[91,"2610","Ленинградская область","27677580","ООО \"Выборгская лесопромышленная корпорация\"","4704087728","470450001","16-04-2012 00:00:00",null,"WARM"]
[92,"2610","Ленинградская область","31210610","ООО \"ГЕФЕСТ\"","4705065149","470501001",null,null,"WARM"]
[93,"2610","Ленинградская область","28048642","ООО \"ГРАНД\"","4714017430","472601001",null,null,"WARM"]
[94,"2610","Ленинградская область","27883546","ООО \"ГТМ - Теплосервис\"","7810496527","780501001",null,null,"WARM"]
[95,"2610","Ленинградская область","29649769","ООО \"Дубровская ТЭЦ\"","4706036863","470601001",null,null,"WARM"]
[96,"2610","Ленинградская область","30906125","ООО \"ЖилКомТеплоЭнерго\"","4712023541","471201001",null,null,"WARM"]
[97,"2610","Ленинградская область","28932418","ООО \"Жилсервис\"","7843305143","470301001","23-12-2014 00:00:00",null,"WARM"]
[98,"2610","Ленинградская область","30371603","ООО \"ИЭК\"","4725001841","472501001",null,null,"WARM"]
[99,"2610","Ленинградская область","30989185","ООО \"Колтушские тепловые сети\"","4703150102","470301001",null,null,"WARM"]
[100,"2610","Ленинградская область","26524185","ООО \"Коммун Энерго\"","4707021122","470701001","09-06-2010 00:00:00",null,"WARM"]
[101,"2610","Ленинградская область","28795099","ООО \"Ландшафт ЭКО\"","4712023196","471201001",null,null,"WARM"]
[102,"2610","Ленинградская область","28016967","ООО \"Лемэк\"","7801213324","472501001","07-03-2012 00:00:00",null,"WARM"]
[103,"2610","Ленинградская область","28048616","ООО \"Леноблтеплоснаб\"","7811527520","781101001",null,null,"WARM"]
[104,"2610","Ленинградская область","27850826","ООО \"Лужское тепло\"","4710032029","471001001","30-07-2012 00:00:00",null,"WARM"]
[105,"2610","Ленинградская область","28155588","ООО \"Мир Техники\"","7810034240","782001001","18-06-2013 00:00:00",null,"WARM"]
[106,"2610","Ленинградская область","28877938","ООО \"МонтажСтрой\"","7840323602","781301001",null,null,"WARM"]
[107,"2610","Ленинградская область","28545761","ООО \"НТЦ \"Энергия\"","4705052118","470501001","24-06-2015 00:00:00",null,"WARM"]
[108,"2610","Ленинградская область","28968332","ООО \"Новая Водная Ассоциация\"","7801426040","780101001","18-05-2015 00:00:00",null,"WARM"]
[109,"2610","Ленинградская область","28829716","ООО \"ОблСервис\"","4712024087","471201001",null,null,"WARM"]
[110,"2610","Ленинградская область","26375635","ООО \"Ольшаники\"","7801079076","470401001",null,null,"WARM"]
[111,"2610","Ленинградская область","28829326","ООО \"ПАРИТЕТЪ\"","4712026119","471201001",null,null,"WARM"]
[112,"2610","Ленинградская область","28447219","ООО \"ПРОДЭКС-ЭС\"","7810836981","781001001","17-08-2011 00:00:00",null,"WARM"]
[113,"2610","Ленинградская область","27920896","ООО \"ПТЭСК\"","4706033100","470601001",null,null,"WARM"]
[114,"2610","Ленинградская область","30344093","ООО \"Паритет\"","4712026060","471201001","29-09-2015 00:00:00",null,"WARM"]
[115,"2610","Ленинградская область","26422005","ООО \"Петербургская торгово-промышленная компания\"","7825487243","784101001",null,null,"WARM"]
[116,"2610","Ленинградская область","26422017","ООО \"Петербургтеплоэнерго\"","7838024362","783450001",null,null,"WARM"]
[117,"2610","Ленинградская область","28489933","ООО \"Полар Инвест\"","7806104671","470301001","03-03-2000 00:00:00",null,"WARM"]
[118,"2610","Ленинградская область","28454795","ООО \"Приладожский Теплоснаб\"","4706035267","470601001","24-12-2013 00:00:00",null,"WARM"]
[119,"2610","Ленинградская область","26524253","ООО \"Промэнерго\"","4706016137","470601001","09-06-2010 00:00:00",null,"WARM"]
[120,"2610","Ленинградская область","28274778","ООО \"Ресурс\"","4711012515","471101001","07-10-2013 00:00:00",null,"WARM"]
[121,"2610","Ленинградская область","26813882","ООО \"С-КЛАД\"","7806358411","470301001",null,null,"WARM"]
[122,"2610","Ленинградская область","26640635","ООО \"СМЭУ Заневка\"","4703116542","470301001",null,null,"WARM"]
[123,"2610","Ленинградская область","30940618","ООО \"СТЭК\"","4703142768","470301001","08-12-2014 00:00:00",null,"WARM"]
[124,"2610","Ленинградская область","26799802","ООО \"Светогорское жилищно-коммунальное хозяйство\"","4704026517","470401001",null,null,"WARM"]
[125,"2610","Ленинградская область","28951581","ООО \"Сланцы\"","0276144176","470701001","01-04-2015 00:00:00",null,"WARM"]
[126,"2610","Ленинградская область","27774476","ООО \"Сосновский деревообрабатывающий завод\"","4712128738","471201001",null,null,"WARM"]
[127,"2610","Ленинградская область","28511826","ООО \"ТЕПЛОЭНЕРГО\"","7802853013","780101001",null,null,"WARM"]
[128,"2610","Ленинградская область","31075334","ООО \"ТЕРМО-ЛАЙН\"","4704103465","470401001",null,null,"WARM"]
[129,"2610","Ленинградская область","30363291","ООО \"ТК \"Мурино\"","7813559373","781301001",null,null,"WARM"]
[130,"2610","Ленинградская область","28136027","ООО \"Твердое топливо\"","7813422900","781301001","25-03-2013 00:00:00",null,"WARM"]
[131,"2610","Ленинградская область","30370326","ООО \"Тепло Сервис\"","4703137736","470301001","27-11-2015 00:00:00",null,"WARM"]
[132,"2610","Ленинградская область","28795051","ООО \"Тепло-Сервис\"","7811494554","471201001",null,null,"WARM"]
[133,"2610","Ленинградская область","28272648","ООО \"Тепловые Системы\"","7810450755","781001001","30-09-2013 00:00:00",null,"WARM"]
[134,"2610","Ленинградская область","28506998","ООО \"Теплодом\"","4703130547","781301001",null,null,"WARM"]
[135,"2610","Ленинградская область","26467459","ООО \"Теплострой плюс\"","7842322869","784201001",null,null,"WARM"]
[136,"2610","Ленинградская область","27061101","ООО \"Тихвин Дом\"","4715024568","471501001","22-12-2010 00:00:00",null,"WARM"]
[137,"2610","Ленинградская область","30917818","ООО \"Толмачевский завод ЖБ и МК\"","4710013019","471001001",null,null,"WARM"]
[138,"2610","Ленинградская область","28829108","ООО \"Транснефть-Порт Усть-Луга\"","4707021059","470701001",null,null,"WARM"]
[139,"2610","Ленинградская область","28175609","ООО \"Управляющая компания\"Коммунальные сети\"","4707026836","470701001","05-07-2013 00:00:00",null,"WARM"]
[140,"2610","Ленинградская область","26523754","ООО \"Флагман\"","7805222344","470301001","09-06-2010 00:00:00",null,"WARM"]
[141,"2610","Ленинградская область","30989338","ООО \"ЭКОТЕХНОЛОГИЯ\"","4712027955","471201001",null,null,"WARM"]
[142,"2610","Ленинградская область","28490320","ООО \"ЭЛСО-ЭГМ\"","7813561990","781301001","06-03-2014 00:00:00",null,"WARM"]
[143,"2610","Ленинградская область","26648562","ООО \"Энерго-Ресурс\"","4703108005","470301001",null,null,"WARM"]
[144,"2610","Ленинградская область","28979613","ООО \"ЭнергоИнвест\"","7841378040","780201001",null,null,"WARM"]
[145,"2610","Ленинградская область","27517472","ООО \"Энергогазмонтаж\"","7806119950","781301001",null,null,"WARM"]
[146,"2610","Ленинградская область","26361112","ООО \"Энергопромсервис\"","7811141414","781101001",null,null,"WARM"]
[147,"2610","Ленинградская область","30870466","ООО «Ленжилэксплуатация»","7810764455","781001001","21-10-2013 00:00:00",null,"WARM"]
[148,"2610","Ленинградская область","27630757","ООО «Промэнерго»","7839320364","783901001",null,null,"WARM"]
[149,"2610","Ленинградская область","27883558","ООО «ТК Северная»","4703123451","470301001",null,null,"WARM"]
[150,"2610","Ленинградская область","26561655","ООО «ТСК»","4703125360","470301001",null,null,"WARM"]
[151,"2610","Ленинградская область","27549588","ООО «Хаккапелиитта Вилладж»","4703093479","470301001",null,null,"WARM"]
[152,"2610","Ленинградская область","30872572","ООО «Энергия»","7813259980","781301001","06-09-2016 00:00:00",null,"WARM"]
[153,"2610","Ленинградская область","27566956","ООО «Энергоинвест»","4716026007","784201001",null,null,"WARM"]
[154,"2610","Ленинградская область","31007537","ООО УК \"Новоантропшино\"","4705063960","470501001",null,null,"WARM"]
[155,"2610","Ленинградская область","26526809","ООО Управляющая компания ''Оазис''","4712128456","471201001","09-06-2010 00:00:00",null,"WARM"]
[156,"2610","Ленинградская область","26640606","Обособленное подразделение ООО \"ФПГ \"РОССТРО - ЛФК\"","7811461140","471645001",null,null,"WARM"]
[157,"2610","Ленинградская область","26322152","ПАО \"Ленэнерго\"","7803002209","781001001",null,null,"WARM"]
[158,"2610","Ленинградская область","26515797","ПАО \"ОГК-2\" филиал Киришская ГРЭС","2607018122","471543001",null,null,"WARM"]
[159,"2610","Ленинградская область","26524249","ПАО \"Павловский завод\"","4706002529","470601001","09-06-2010 00:00:00",null,"WARM"]
[160,"2610","Ленинградская область","26539356","ПАО \"ТГК-1\" филиал \"Невский\"","7841312071","780102001",null,null,"WARM"]
[161,"2610","Ленинградская область","26524280","ПАО \"ТС\"","4712040346","471201001","09-06-2010 00:00:00",null,"WARM"]
[162,"2610","Ленинградская область","26373261","ПАО \"Толмачевский завод ЖБ и МК\"","4710000348","471001001",null,null,"WARM"]
[163,"2610","Ленинградская область","30955687","ПУ ФСБ России по г.Санкт-Петербургу и Ленинградской области","7842317080","784201001",null,null,"WARM"]
[164,"2610","Ленинградская область","26653815","СЗПК-филиал ОАО \"ЭЛТЕЗА\"","7716523950","771601001",null,null,"WARM"]
[165,"2610","Ленинградская область","26583421","СМУП \"ТСП\"","4714014006","472601001",null,null,"WARM"]
[166,"2610","Ленинградская область","26524175","ФГБУ \"ПИЯФ\"","4705001850","470501001",null,null,"WARM"]
[167,"2610","Ленинградская область","26319697","ФГУП \"НИТИ им. А.П. Александрова\"","4714000067","472650001","22-03-1994 00:00:00",null,"WARM"]
[168,"2610","Ленинградская область","31105221","ФГУП \"Росморпорт\"","7702352454","780502001","15-05-2003 00:00:00",null,"WARM"]
[169,"2610","Ленинградская область","26524173","ФГУП ПЭКП НИЦ \"Курчатовский институт\"","4705014183","470501001",null,null,"WARM"]
[170,"2610","Ленинградская область","26373300","ФКУ \"Исправительная колония №3 УФСИН России по г. СПб и ЛО\"","4716003610","471601001",null,null,"WARM"]
[171,"2610","Ленинградская область","26373296","ФКУ ИК-2 УФСИН России по С-Пб и ЛО","4716000986","471601001",null,null,"WARM"]
[172,"2610","Ленинградская область","28812394","Филиал АО «Газпром теплоэнерго» в Ленинградской области","5003046281","471043001","10-09-2014 00:00:00",null,"WARM"]
[173,"2610","Ленинградская область","30941480","Филиал ФГБУ \"ЦЖКУ\" Минобороны России по ЗВО","7729314745","784243001",null,null,"WARM"]

{"sheet":"modClassifierValidate","index":36,"n_rows":0,"n_cols":0,"rows_kept":0,"cut":false,"hidden":true,"merged":[]}

{"sheet":"modHyp","index":37,"n_rows":0,"n_cols":0,"rows_kept":0,"cut":false,"hidden":true,"merged":[]}

{"sheet":"modfrmDateChoose","index":38,"n_rows":0,"n_cols":0,"rows_kept":0,"cut":false,"hidden":true,"merged":[]}

{"sheet":"modComm","index":39,"n_rows":0,"n_cols":0,"rows_kept":0,"cut":false,"hidden":true,"merged":[]}

{"sheet":"modThisWorkbook","index":40,"n_rows":0,"n_cols":0,"rows_kept":0,"cut":false,"hidden":true,"merged":[]}

{"sheet":"REESTR_MO","index":41,"n_rows":218,"n_cols":4,"rows_kept":218,"cut":false,"hidden":true,"merged":[]}
["№","МР","МО","МО_ОКТМО"]
[1,"Бокситогорский муниципальный район","Бокситогорский муниципальный район","41603000"]
[2,"Бокситогорский муниципальный район","Бокситогорское","41603101"]
[3,"Бокситогорский муниципальный район","Большедворское","41603412"]
[4,"Бокситогорский муниципальный район","Борское","41603416"]
[5,"Бокситогорский муниципальный район","Ефимовское","41603155"]
[6,"Бокситогорский муниципальный район","Климовское","41603434"]
[7,"Бокситогорский муниципальный район","Лидское","41603460"]
[8,"Бокситогорский муниципальный район","Пикалевское","41603102"]
[9,"Бокситогорский муниципальный район","Радогощинское","41603472"]
[10,"Бокситогорский муниципальный район","Самойловское","41603476"]
[11,"Волосовский муниципальный район","Бегуницкое","41606404"]
[12,"Волосовский муниципальный район","Беседское","41606406"]
[13,"Волосовский муниципальный район","Большеврудское","41606412"]
[14,"Волосовский муниципальный район","Волосовский муниципальный район","41606000"]
[15,"Волосовский муниципальный район","Волосовское","41606101"]
[16,"Волосовский муниципальный район","Губаницкое","41606416"]
[17,"Волосовский муниципальный район","Зимитицкое","41606452"]
[18,"Волосовский муниципальный район","Изварское","41606418"]
[19,"Волосовский муниципальный район","Калитинское","41606420"]
[20,"Волосовский муниципальный район","Каложицкое","41606424"]
[21,"Волосовский муниципальный район","Кикеринское","41606425"]
[22,"Волосовский муниципальный район","Клопицкое","41606430"]
[23,"Волосовский муниципальный район","Курское","41606432"]
[24,"Волосовский муниципальный район","Рабитицское","41606408"]
[25,"Волосовский муниципальный район","Сабское","41606436"]
[26,"Волосовский муниципальный район","Сельцовское","41606428"]
[27,"Волосовский муниципальный район","Терпилицкое","41606444"]
[28,"Волховский муниципальный район","Бережковское","41609453"]
[29,"Волховский муниципальный район","Волховский муниципальный район","41609000"]
[30,"Волховский муниципальный район","Волховское","41609101"]
[31,"Волховский муниципальный район","Вындиноостровское","41609403"]
[32,"Волховский муниципальный район","Иссадское","41609418"]
[33,"Волховский муниципальный район","Кисельнинское","41609471"]
[34,"Волховский муниципальный район","Колчановское","41609427"]
[35,"Волховский муниципальный район","Новоладожское","41609104"]
[36,"Волховский муниципальный район","Пашское","41609444"]
[37,"Волховский муниципальный район","Потанинское","41609450"]
[38,"Волховский муниципальный район","Свирицкое","41609480"]
[39,"Волховский муниципальный район","Селивановское","41609461"]
[40,"Волховский муниципальный район","Староладожское","41609462"]
[41,"Волховский муниципальный район","Сясьстройское","41609108"]
[42,"Волховский муниципальный район","Усадищенское","41609465"]
[43,"Волховский муниципальный район","Хваловское","41609468"]
[44,"Всеволожский муниципальный район","Агалатовское","41612408"]
[45,"Всеволожский муниципальный район","Бугровское","41612402"]
[46,"Всеволожский муниципальный район","Всеволожский муниципальный район","41612000"]
[47,"Всеволожский муниципальный район","Всеволожское","41612101"]
[48,"Всеволожский муниципальный район","Дубровское","41612154"]
[49,"Всеволожский муниципальный район","Заневское","41612155"]
[50,"Всеволожский муниципальный район","Колтушское","41612416"]
[51,"Всеволожский муниципальный район","Кузьмоловское","41612158"]
[52,"Всеволожский муниципальный район","Куйвозовское","41612420"]
[53,"Всеволожский муниципальный район","Лесколовское","41612424"]
[54,"Всеволожский муниципальный район","Морозовское","41612163"]
[55,"Всеволожский муниципальный район","Муринское","41612428"]
[56,"Всеволожский муниципальный район","Новодевяткинское","41612458"]
[57,"Всеволожский муниципальный район","Рахьинское","41612167"]
[58,"Всеволожский муниципальный район","Романовское","41612442"]
[59,"Всеволожский муниципальный район","Свердловское","41612168"]
[60,"Всеволожский муниципальный район","Сертоловское","41612102"]
[61,"Всеволожский муниципальный район","Токсовское","41612175"]
[62,"Всеволожский муниципальный район","Щегловское","41612448"]
[63,"Всеволожский муниципальный район","Юкковское","41612456"]
[64,"Выборгский муниципальный район","Выборгский муниципальный район","41615000"]
[65,"Выборгский муниципальный район","Выборгское","41615101"]
[66,"Выборгский муниципальный район","Высоцкое","41615104"]
[67,"Выборгский муниципальный район","Гончаровское","41615492"]
[68,"Выборгский муниципальный район","Каменногорское","41615106"]
[69,"Выборгский муниципальный район","Красносельское","41615436"]
[70,"Выборгский муниципальный район","Первомайское","41615460"]
[71,"Выборгский муниципальный район","Полянское","41615464"]
[72,"Выборгский муниципальный район","Приморское","41615108"]
[73,"Выборгский муниципальный район","Рощинское","41615158"]
[74,"Выборгский муниципальный район","Светогорское","41615114"]
[75,"Выборгский муниципальный район","Селезневское","41615476"]
[76,"Выборгский муниципальный район","Советское","41615163"]
[77,"Гатчинский муниципальный район","Большеколпанское","41618408"]
[78,"Гатчинский муниципальный район","Веревское","41618416"]
[79,"Гатчинский муниципальный район","Войсковицкое","41618418"]
[80,"Гатчинский муниципальный район","Вырицкое","41618154"]
[81,"Гатчинский муниципальный район","Гатчинский муниципальный район","41618000"]
[82,"Гатчинский муниципальный район","Гатчинское","41618101"]
[83,"Гатчинский муниципальный район","Дружногорское","41618156"]
[84,"Гатчинский муниципальный район","Елизаветинское","41618424"]
[85,"Гатчинский муниципальный район","Кобринское","41618426"]
[86,"Гатчинский муниципальный район","Коммунарское","41618105"]
[87,"Гатчинский муниципальный район","Новосветское","41618444"]
[88,"Гатчинский муниципальный район","Пудомягское","41618404"]
[89,"Гатчинский муниципальный район","Пудостьское","41618448"]
[90,"Гатчинский муниципальный район","Рождественское","41618452"]
[91,"Гатчинский муниципальный район","Сиверское","41618169"]
[92,"Гатчинский муниципальный район","Сусанинское","41618460"]
[93,"Гатчинский муниципальный район","Сяськелевское","41618461"]
[94,"Гатчинский муниципальный район","Тайцкое","41618176"]
[95,"Кингисеппский муниципальный район","Большелуцкое","41621404"]
[96,"Кингисеппский муниципальный район","Вистинское","41621452"]
[97,"Кингисеппский муниципальный район","Ивангородское","41621102"]
[98,"Кингисеппский муниципальный район","Кингисеппский муниципальный район","41621000"]
[99,"Кингисеппский муниципальный район","Кингисеппское","41621101"]
[100,"Кингисеппский муниципальный район","Котельское","41621420"]
[101,"Кингисеппский муниципальный район","Куземкинское","41621432"]
[102,"Кингисеппский муниципальный район","Нежновское","41621440"]
[103,"Кингисеппский муниципальный район","Опольевское","41621444"]
[104,"Кингисеппский муниципальный район","Пустомержское","41621448"]
[105,"Кингисеппский муниципальный район","Усть-Лужское","41621428"]
[106,"Кингисеппский муниципальный район","Фалилеевское","41621412"]
[107,"Киришский муниципальный район","Будогощское","41624152"]
[108,"Киришский муниципальный район","Глажевское","41624412"]
[109,"Киришский муниципальный район","Киришский муниципальный район","41624000"]
[110,"Киришский муниципальный район","Киришское","41624101"]
[111,"Киришский муниципальный район","Кусинское","41624423"]
[112,"Киришский муниципальный район","Пчевжинское","41624427"]
[113,"Киришский муниципальный район","Пчевское","41624428"]
[114,"Кировский муниципальный район","Кировский муниципальный район","41625000"]
[115,"Кировский муниципальный район","Кировское","41625101"]
[116,"Кировский муниципальный район","Мгинское","41625154"]
[117,"Кировский муниципальный район","Назиевское","41625156"]
[118,"Кировский муниципальный район","Отрадненское","41625104"]
[119,"Кировский муниципальный район","Павловское","41625158"]
[120,"Кировский муниципальный район","Приладожское","41625160"]
[121,"Кировский муниципальный район","Путиловское","41625440"]
[122,"Кировский муниципальный район","Синявинское","41625163"]
[123,"Кировский муниципальный район","Суховское","41625445"]
[124,"Кировский муниципальный район","Шлиссельбургское","41625102"]
[125,"Кировский муниципальный район","Шумское","41625450"]
[126,"Лодейнопольский муниципальный район","Алеховщинское","41627404"]
[127,"Лодейнопольский муниципальный район","Доможировское","41627410"]
[128,"Лодейнопольский муниципальный район","Лодейнопольский муниципальный район","41627000"]
[129,"Лодейнопольский муниципальный район","Лодейнопольское","41627101"]
[130,"Лодейнопольский муниципальный район","Свирьстройское","41627154"]
[131,"Лодейнопольский муниципальный район","Янегское","41627420"]
[132,"Ломоносовский муниципальный район","Аннинское","41630152"]
[133,"Ломоносовский муниципальный район","Большеижорское","41630154"]
[134,"Ломоносовский муниципальный район","Виллозское","41630157"]
[135,"Ломоносовский муниципальный район","Горбунковское","41630424"]
[136,"Ломоносовский муниципальный район","Гостилицкое","41630420"]
[137,"Ломоносовский муниципальный район","Кипенское","41630428"]
[138,"Ломоносовский муниципальный район","Копорское","41630432"]
[139,"Ломоносовский муниципальный район","Лаголовское","41630434"]
[140,"Ломоносовский муниципальный район","Лебяженское","41630162"]
[141,"Ломоносовский муниципальный район","Ломоносовский муниципальный район","41630000"]
[142,"Ломоносовский муниципальный район","Лопухинское","41630436"]
[143,"Ломоносовский муниципальный район","Низинское","41630408"]
[144,"Ломоносовский муниципальный район","Оржицкое","41630438"]
[145,"Ломоносовский муниципальный район","Пениковское","41630412"]
[146,"Ломоносовский муниципальный район","Ропшинское","41630440"]
[147,"Ломоносовский муниципальный район","Русско-Высоцкое","41630444"]
[148,"Лужский муниципальный район","Володарское","41633408"]
[149,"Лужский муниципальный район","Волошовское","41633416"]
[150,"Лужский муниципальный район","Дзержинское","41633420"]
[151,"Лужский муниципальный район","Заклинское","41633436"]
[152,"Лужский муниципальный район","Лужский муниципальный район","41633000"]
[153,"Лужский муниципальный район","Лужское","41633101"]
[154,"Лужский муниципальный район","Мшинское","41633440"]
[155,"Лужский муниципальный район","Оредежское","41633444"]
[156,"Лужский муниципальный район","Осьминское","41633448"]
[157,"Лужский муниципальный район","Ретюнское","41633488"]
[158,"Лужский муниципальный район","Серебрянское","41633464"]
[159,"Лужский муниципальный район","Скребловское","41633468"]
[160,"Лужский муниципальный район","Тесовское","41633472"]
[161,"Лужский муниципальный район","Толмачевское","41633154"]
[162,"Лужский муниципальный район","Торковичское","41633478"]
[163,"Лужский муниципальный район","Ям-Тесовское","41633456"]
[164,"Подпорожский муниципальный район","Важинское","41636154"]
[165,"Подпорожский муниципальный район","Винницкое","41636404"]
[166,"Подпорожский муниципальный район","Вознесенское","41636158"]
[167,"Подпорожский муниципальный район","Никольское","41636163"]
[168,"Подпорожский муниципальный район","Подпорожский муниципальный район","41636000"]
[169,"Подпорожский муниципальный район","Подпорожское","41636101"]
[170,"Приозерский муниципальный район","Громовское","41639412"]
[171,"Приозерский муниципальный район","Запорожское","41639416"]
[172,"Приозерский муниципальный район","Красноозерное","41639420"]
[173,"Приозерский муниципальный район","Кузнечнинское","41639154"]
[174,"Приозерский муниципальный район","Ларионовское","41639424"]
[175,"Приозерский муниципальный район","Мельниковское","41639428"]
[176,"Приозерский муниципальный район","Мичуринское","41639432"]
[177,"Приозерский муниципальный район","Петровское","41639440"]
[178,"Приозерский муниципальный район","Плодовское","41639436"]
[179,"Приозерский муниципальный район","Приозерский муниципальный район","41639000"]
[180,"Приозерский муниципальный район","Приозерское","41639101"]
[181,"Приозерский муниципальный район","Раздольевское","41639408"]
[182,"Приозерский муниципальный район","Ромашкинское","41639434"]
[183,"Приозерский муниципальный район","Севастьяновское","41639404"]
[184,"Приозерский муниципальный район","Сосновское","41639444"]
[185,"Сланцевский муниципальный район","Выскатское","41642404"]
[186,"Сланцевский муниципальный район","Гостицкое","41642424"]
[187,"Сланцевский муниципальный район","Загривское","41642408"]
[188,"Сланцевский муниципальный район","Новосельское","41642420"]
[189,"Сланцевский муниципальный район","Сланцевский муниципальный район","41642000"]
[190,"Сланцевский муниципальный район","Сланцевское","41642101"]
[191,"Сланцевский муниципальный район","Старопольское","41642436"]
[192,"Сланцевский муниципальный район","Черновское","41642440"]
[193,"Сосновоборский городской округ","Сосновоборский городской округ","41754000"]
[194,"Тихвинский муниципальный район","Борское","41645410"]
[195,"Тихвинский муниципальный район","Ганьковское","41645412"]
[196,"Тихвинский муниципальный район","Горское","41645416"]
[197,"Тихвинский муниципальный район","Коськовское","41645472"]
[198,"Тихвинский муниципальный район","Мелегежское","41645408"]
[199,"Тихвинский муниципальный район","Пашозерское","41645456"]
[200,"Тихвинский муниципальный район","Тихвинский муниципальный район","41645000"]
[201,"Тихвинский муниципальный район","Тихвинское","41645101"]
[202,"Тихвинский муниципальный район","Цвылевское","41645432"]
[203,"Тихвинский муниципальный район","Шугозерское","41645477"]
[204,"Тосненский муниципальный район","Красноборское","41648154"]
[205,"Тосненский муниципальный район","Лисинское","41648430"]
[206,"Тосненский муниципальный район","Любанское","41648105"]
[207,"Тосненский муниципальный район","Никольское","41648108"]
[208,"Тосненский муниципальный район","Нурминское","41648418"]
[209,"Тосненский муниципальный район","Рябовское","41648160"]
[210,"Тосненский муниципальный район","Тельмановское","41648443"]
[211,"Тосненский муниципальный район","Тосненский муниципальный район","41648000"]
[212,"Тосненский муниципальный район","Тосненское","41648101"]
[213,"Тосненский муниципальный район","Трубникоборское","41648444"]
[214,"Тосненский муниципальный район","Ульяновское","41648164"]
[215,"Тосненский муниципальный район","Фёдоровское","41648165"]
[216,"Тосненский муниципальный район","Форносовское","41648170"]
[217,"Тосненский муниципальный район","Шапкинское","41648464"]

{"sheet":"REESTR_MO_FILTER","index":42,"n_rows":0,"n_cols":0,"rows_kept":0,"cut":false,"hidden":true,"merged":[]}

{"sheet":"modfrmReestrMR","index":43,"n_rows":0,"n_cols":0,"rows_kept":0,"cut":false,"hidden":true,"merged":[]}

{"sheet":"modServiceModule","index":44,"n_rows":0,"n_cols":0,"rows_kept":0,"cut":false,"hidden":true,"merged":[]}

{"sheet":"modfrmCheckUpdates","index":45,"n_rows":0,"n_cols":0,"rows_kept":0,"cut":false,"hidden":true,"merged":[]}

{"sheet":"REESTR_DS","index":46,"n_rows":5,"n_cols":2,"rows_kept":5,"cut":false,"hidden":true,"merged":[]}
[]
[]
[null,"Всеволожский муниципальный район, Муринское (41612428);"]
[null,"Всеволожский муниципальный район, Новодевяткинское (41612458);"]
[null,"Всеволожский муниципальный район, Заневское (41612155);"]

{"sheet":"REESTR_CHS","index":47,"n_rows":0,"n_cols":0,"rows_kept":0,"cut":false,"hidden":true,"merged":[]}

{"sheet":"REESTR_LINK","index":48,"n_rows":3,"n_cols":3,"rows_kept":3,"cut":false,"hidden":true,"merged":[]}
["ID","LINK_NAME","REGION"]
[4189678,"https://portal.eias.ru/Portal/DownloadPage.aspx?type=12&guid=????????-????-????-????-????????????","ALL"]
[4190415,"https://eias.fstrf.ru/disclo/get_file?p_guid=????????-????-????-????-????????????","ALL"]